[Event "Titled Tuesday Blitz April 4 Late 2023"]
[White "Kovalevsky, Stanislav"]
[Black "Lamard, Guillaume"]
[WhiteFideId "13508598"]
[BlackFideId "600261"]
[WhiteElo "2174"]
[BlackElo "2413"]
[Result "0-1"]
[Round "03"]
[TimeControl "180+2"]
[Date "2023.04.04"]
[WhiteClock "0:00:10"]
[BlackClock "0:00:28"]

1. c4 {[%clk 0:03:00]}  Nf6 {[%clk 0:02:59]} 2. Nc3 {[%clk 0:03:01]}  g6 {[%clk 0:02:56]} 3. g3 {[%clk 0:03:01]}  Bg7 {[%clk 0:02:57]} 4. Bg2 {[%clk 0:03:02]}  c6 {[%clk 0:02:57]} 5. e4 {[%clk 0:03:02]}  d6 {[%clk 0:02:57]} 6. b4 {[%clk 0:03:01]}  a5 {[%clk 0:02:56]} 7. b5 {[%clk 0:03:01]}  O-O {[%clk 0:02:51]} 8. Bb2 {[%clk 0:03:00]}  e5 {[%clk 0:02:50]} 9. Nge2 {[%clk 0:02:59]}  Be6 {[%clk 0:02:44]} 10. d3 {[%clk 0:03:00]}  Nbd7 {[%clk 0:02:44]} 11. O-O {[%clk 0:02:53]}  Nc5 {[%clk 0:02:39]} 12. Rb1 {[%clk 0:02:52]}  Qd7 {[%clk 0:02:29]} 13. Ba3 {[%clk 0:02:51]}  Bh3 {[%clk 0:02:28]} 14. Na4 {[%clk 0:02:48]}  Nxa4 {[%clk 0:02:27]} 15. Qxa4 {[%clk 0:02:47]}  c5 {[%clk 0:02:20]} 16. f4 {[%clk 0:02:34]}  exf4 {[%clk 0:02:19]} 17. Rxf4 {[%clk 0:02:17]}  Bxg2 {[%clk 0:02:16]} 18. Kxg2 {[%clk 0:02:17]}  Ng4 {[%clk 0:02:17]} 19. Bb2 {[%clk 0:02:05]}  Bxb2 {[%clk 0:02:11]} 20. Rxb2 {[%clk 0:02:06]}  Ne5 {[%clk 0:02:04]} 21. Qd1 {[%clk 0:01:59]}  f5 {[%clk 0:02:03]} 22. Nc3 {[%clk 0:01:54]}  fxe4 {[%clk 0:02:03]} 23. Nxe4 {[%clk 0:01:54]}  Kg7 {[%clk 0:01:52]} 24. Rbf2 {[%clk 0:01:52]}  Qe7 {[%clk 0:01:31]} 25. d4 {[%clk 0:01:24]}  Nxc4 {[%clk 0:01:28]} 26. Qd3 {[%clk 0:01:12]}  Rxf4 {[%clk 0:01:17]} 27. Rxf4 {[%clk 0:01:09]}  d5 {[%clk 0:01:17]} 28. Nxc5 {[%clk 0:01:03]}  Re8 {[%clk 0:01:12]} 29. Qf3 {[%clk 0:00:33]}  b6 {[%clk 0:01:06]} 30. Nd3 {[%clk 0:00:30]}  Qe2+ {[%clk 0:01:05]} 31. Qxe2 {[%clk 0:00:30]}  Rxe2+ {[%clk 0:01:05]} 32. Rf2 {[%clk 0:00:28]}  Re4 {[%clk 0:00:58]} 33. Rf4 {[%clk 0:00:29]}  Re3 {[%clk 0:00:56]} 34. Rf3 {[%clk 0:00:27]}  Re4 {[%clk 0:00:41]} 35. Rf4 {[%clk 0:00:27]}  Re7 {[%clk 0:00:39]} 36. Kf2 {[%clk 0:00:20]}  Nd6 {[%clk 0:00:34]} 37. h4 {[%clk 0:00:19]}  Nxb5 {[%clk 0:00:34]} 38. h5 {[%clk 0:00:17]}  Nc3 {[%clk 0:00:33]} 39. Ne5 {[%clk 0:00:17]}  Ne4+ {[%clk 0:00:30]} 40. Kg2 {[%clk 0:00:15]}  b5 {[%clk 0:00:28]} 41. hxg6 {[%clk 0:00:15]}  hxg6 {[%clk 0:00:28]} 42. Rg4 {[%clk 0:00:14]}  g5 {[%clk 0:00:29]} 43. Nf3 {[%clk 0:00:13]}  Kg6 {[%clk 0:00:29]} 44. Nh4+ {[%clk 0:00:13]}  Kh5 {[%clk 0:00:28]} 45. Kh3 {[%clk 0:00:10]}  Nf2+ {[%clk 0:00:27]} 46. Kg2 {[%clk 0:00:10]}  Nxg4 {[%clk 0:00:28]} 47. Nf5 {[%clk 0:00:10]}  Re2+ {[%clk 0:00:28]} 48. Kh3 {[%clk 0:00:10]}  Rh2# {[%clk 0:00:28]} 0-1


[Site "https://www.chess.com"]

[Event "Titled Tuesday Blitz April 4 Late 2023"]
[White "Koc, Przemyslaw"]
[Black "Andreikin, Dmitry"]
[WhiteFideId "1109081"]
[BlackFideId "4158814"]
[WhiteElo "2161"]
[BlackElo "2736"]
[Result "0-1"]
[Round "03"]
[TimeControl "180+2"]
[Date "2023.04.04"]
[WhiteClock "0:00:06"]
[BlackClock "0:00:08"]

1. Nf3 {[%clk 0:03:00]}  Nf6 {[%clk 0:02:57]} 2. d4 {[%clk 0:03:00]}  e6 {[%clk 0:02:57]} 3. Bg5 {[%clk 0:02:56]}  h6 {[%clk 0:02:56]} 4. Bh4 {[%clk 0:02:55]}  d6 {[%clk 0:02:57]} 5. Nbd2 {[%clk 0:02:55]}  g5 {[%clk 0:02:57]} 6. Bg3 {[%clk 0:02:55]}  Nh5 {[%clk 0:02:57]} 7. e4 {[%clk 0:02:54]}  Bg7 {[%clk 0:02:57]} 8. c3 {[%clk 0:02:52]}  Nd7 {[%clk 0:02:55]} 9. Bd3 {[%clk 0:02:52]}  b6 {[%clk 0:02:54]} 10. Qe2 {[%clk 0:02:51]}  a6 {[%clk 0:02:54]} 11. O-O-O {[%clk 0:02:41]}  Bb7 {[%clk 0:02:54]} 12. Rhe1 {[%clk 0:02:40]}  Qe7 {[%clk 0:02:52]} 13. Kb1 {[%clk 0:02:34]}  b5 {[%clk 0:02:52]} 14. e5 {[%clk 0:02:28]}  d5 {[%clk 0:02:50]} 15. b4 {[%clk 0:02:24]}  a5 {[%clk 0:02:46]} 16. a3 {[%clk 0:02:24]}  axb4 {[%clk 0:02:41]} 17. axb4 {[%clk 0:02:24]}  Nb6 {[%clk 0:02:25]} 18. Nb3 {[%clk 0:02:23]}  Nc4 {[%clk 0:02:19]} 19. Nc5 {[%clk 0:02:11]}  Ra3 {[%clk 0:02:19]} 20. Bxc4 {[%clk 0:02:09]}  bxc4 {[%clk 0:02:17]} 21. Kb2 {[%clk 0:02:09]}  Ra7 {[%clk 0:02:09]} 22. Ra1 {[%clk 0:02:08]}  Rxa1 {[%clk 0:02:09]} 23. Rxa1 {[%clk 0:02:09]}  Bc8 {[%clk 0:02:09]} 24. Ra8 {[%clk 0:02:03]}  O-O {[%clk 0:02:09]} 25. Nd2 {[%clk 0:01:54]}  Nxg3 {[%clk 0:02:08]} 26. hxg3 {[%clk 0:01:53]}  f6 {[%clk 0:02:09]} 27. f4 {[%clk 0:01:50]}  fxe5 {[%clk 0:01:57]} 28. fxe5 {[%clk 0:01:48]}  Bd7 {[%clk 0:01:55]} 29. Rxf8+ {[%clk 0:01:44]}  Bxf8 {[%clk 0:01:56]} 30. Qh5 {[%clk 0:01:43]}  Be8 {[%clk 0:01:51]} 31. Qg4 {[%clk 0:01:41]}  Bf7 {[%clk 0:01:51]} 32. Nf3 {[%clk 0:01:37]}  Qe8 {[%clk 0:01:47]} 33. Qh3 {[%clk 0:01:32]}  Kg7 {[%clk 0:01:39]} 34. g4 {[%clk 0:01:19]}  Bg6 {[%clk 0:01:35]} 35. Qh1 {[%clk 0:01:14]}  Qf7 {[%clk 0:01:26]} 36. Qa1 {[%clk 0:01:08]}  Be4 {[%clk 0:01:15]} 37. Qa7 {[%clk 0:01:04]}  Kg6 {[%clk 0:01:10]} 38. Qb8 {[%clk 0:00:57]}  Bxc5 {[%clk 0:01:06]} 39. dxc5 {[%clk 0:00:54]}  h5 {[%clk 0:00:58]} 40. gxh5+ {[%clk 0:00:51]}  Kxh5 {[%clk 0:00:59]} 41. Qh8+ {[%clk 0:00:50]}  Kg4 {[%clk 0:00:59]} 42. Qf6 {[%clk 0:00:44]}  Qg8 {[%clk 0:00:59]} 43. b5 {[%clk 0:00:34]}  Kh5 {[%clk 0:00:45]} 44. b6 {[%clk 0:00:32]}  cxb6 {[%clk 0:00:39]} 45. cxb6 {[%clk 0:00:32]}  Bxf3 {[%clk 0:00:33]} 46. Qxf3+ {[%clk 0:00:29]}  g4 {[%clk 0:00:34]} 47. Qf6 {[%clk 0:00:28]}  Qe8 {[%clk 0:00:31]} 48. Kc1 {[%clk 0:00:26]}  Qa4 {[%clk 0:00:26]} 49. Qxe6 {[%clk 0:00:21]}  Qa1+ {[%clk 0:00:24]} 50. Kc2 {[%clk 0:00:20]}  Qa2+ {[%clk 0:00:24]} 51. Kc1 {[%clk 0:00:21]}  Qa3+ {[%clk 0:00:25]} 52. Kc2 {[%clk 0:00:21]}  Qb3+ {[%clk 0:00:25]} 53. Kd2 {[%clk 0:00:20]}  Qb2+ {[%clk 0:00:23]} 54. Ke1 {[%clk 0:00:19]}  Qxc3+ {[%clk 0:00:22]} 55. Kf1 {[%clk 0:00:19]}  Qd3+ {[%clk 0:00:20]} 56. Kg1 {[%clk 0:00:19]}  Qe3+ {[%clk 0:00:19]} 57. Kh2 {[%clk 0:00:17]}  Qf4+ {[%clk 0:00:17]} 58. Kg1 {[%clk 0:00:15]}  c3 {[%clk 0:00:06]} 59. Qe8+ {[%clk 0:00:11]}  Kg5 {[%clk 0:00:06]} 60. Qg8+ {[%clk 0:00:10]}  Kf5 {[%clk 0:00:06]} 61. Qf7+ {[%clk 0:00:08]}  Ke4 {[%clk 0:00:06]} 62. Qxf4+ {[%clk 0:00:08]}  Kxf4 {[%clk 0:00:07]} 63. b7 {[%clk 0:00:07]}  c2 {[%clk 0:00:07]} 64. b8=Q {[%clk 0:00:05]}  c1=Q+ {[%clk 0:00:08]} 65. Kf2 {[%clk 0:00:06]}  Qd2+ {[%clk 0:00:07]} 66. Kf1 {[%clk 0:00:06]}  Qd1+ {[%clk 0:00:08]} 67. Kf2 {[%clk 0:00:06]}  g3# {[%clk 0:00:08]} 0-1


[Site "https://www.chess.com"]

[Event "Titled Tuesday Blitz April 4 Late 2023"]
[White "Przybylski, Wojciech"]
[Black "Paravyan, David"]
[WhiteFideId "1117599"]
[BlackFideId "4194985"]
[WhiteElo "2222"]
[BlackElo "2563"]
[Result "0-1"]
[Round "03"]
[TimeControl "180+2"]
[Date "2023.04.04"]
[WhiteClock "0:00:03"]
[BlackClock "0:00:37"]

1. e4 {[%clk 0:03:00]}  e5 {[%clk 0:02:59]} 2. Nf3 {[%clk 0:02:54]}  Nf6 {[%clk 0:02:59]} 3. Nxe5 {[%clk 0:02:52]}  d6 {[%clk 0:02:59]} 4. Nf3 {[%clk 0:02:52]}  Nxe4 {[%clk 0:03:00]} 5. d4 {[%clk 0:02:52]}  d5 {[%clk 0:03:00]} 6. Bd3 {[%clk 0:02:52]}  Bd6 {[%clk 0:03:01]} 7. O-O {[%clk 0:02:52]}  O-O {[%clk 0:03:02]} 8. c4 {[%clk 0:02:46]}  c6 {[%clk 0:03:02]} 9. cxd5 {[%clk 0:02:37]}  cxd5 {[%clk 0:03:02]} 10. Nc3 {[%clk 0:02:36]}  Nxc3 {[%clk 0:03:01]} 11. bxc3 {[%clk 0:02:37]}  Bg4 {[%clk 0:03:02]} 12. h3 {[%clk 0:02:36]}  Bh5 {[%clk 0:03:02]} 13. Rb1 {[%clk 0:02:37]}  Nd7 {[%clk 0:03:02]} 14. Rxb7 {[%clk 0:02:35]}  Nb6 {[%clk 0:03:01]} 15. Ba6 {[%clk 0:02:33]}  Qe8 {[%clk 0:02:50]} 16. Re1 {[%clk 0:01:46]}  Bxf3 {[%clk 0:02:47]} 17. gxf3 {[%clk 0:01:46]}  Qc6 {[%clk 0:02:41]} 18. Qb3 {[%clk 0:01:10]}  Rae8 {[%clk 0:02:28]} 19. Rxe8 {[%clk 0:00:44]}  Rxe8 {[%clk 0:02:29]} 20. Be3 {[%clk 0:00:43]}  Bb8 {[%clk 0:01:15]} 21. Bb5 {[%clk 0:00:25]}  Qxb7 {[%clk 0:00:56]} 22. Bxe8 {[%clk 0:00:23]}  Qc8 {[%clk 0:00:57]} 23. Qb5 {[%clk 0:00:10]}  Qxh3 {[%clk 0:00:49]} 24. Qc6 {[%clk 0:00:10]}  Bh2+ {[%clk 0:00:47]} 25. Kh1 {[%clk 0:00:09]}  Bf4+ {[%clk 0:00:40]} 26. Kg1 {[%clk 0:00:09]}  Bxe3 {[%clk 0:00:41]} 27. fxe3 {[%clk 0:00:09]}  Qg3+ {[%clk 0:00:41]} 28. Kf1 {[%clk 0:00:08]}  Qxf3+ {[%clk 0:00:41]} 29. Ke1 {[%clk 0:00:09]}  Qxe3+ {[%clk 0:00:42]} 30. Kd1 {[%clk 0:00:09]}  Nc4 {[%clk 0:00:36]} 31. Kc2 {[%clk 0:00:04]}  Qd2+ {[%clk 0:00:36]} 32. Kb3 {[%clk 0:00:04]}  Qb2+ {[%clk 0:00:36]} 33. Ka4 {[%clk 0:00:04]}  Qa3+ {[%clk 0:00:36]} 34. Kb5 {[%clk 0:00:03]}  Qa5# {[%clk 0:00:37]} 0-1


[Site "https://www.chess.com"]

[Event "Titled Tuesday Blitz April 4 Late 2023"]
[White "Durarbayli, Vasif"]
[Black "Sztokbant, Bernardo Vainzoff"]
[WhiteFideId "13402935"]
[BlackFideId "2115956"]
[WhiteElo "2551"]
[BlackElo "2222"]
[Result "1-0"]
[Round "03"]
[TimeControl "180+2"]
[Date "2023.04.04"]
[WhiteClock "0:00:12"]
[BlackClock "0:00:08"]

1. e4 {[%clk 0:03:00]}  c5 {[%clk 0:03:00]} 2. Nf3 {[%clk 0:03:01]}  Nc6 {[%clk 0:02:58]} 3. d4 {[%clk 0:03:01]}  cxd4 {[%clk 0:02:59]} 4. Nxd4 {[%clk 0:03:01]}  g6 {[%clk 0:03:00]} 5. Nc3 {[%clk 0:03:00]}  Bg7 {[%clk 0:03:00]} 6. Be3 {[%clk 0:03:00]}  Nf6 {[%clk 0:03:01]} 7. Nxc6 {[%clk 0:03:01]}  bxc6 {[%clk 0:03:01]} 8. e5 {[%clk 0:03:01]}  Nd5 {[%clk 0:02:54]} 9. Nxd5 {[%clk 0:03:01]}  cxd5 {[%clk 0:02:55]} 10. Qxd5 {[%clk 0:03:01]}  Rb8 {[%clk 0:02:56]} 11. O-O-O {[%clk 0:02:56]}  O-O {[%clk 0:02:56]} 12. Qc5 {[%clk 0:02:50]}  d6 {[%clk 0:02:48]} 13. Qxa7 {[%clk 0:02:46]}  Be6 {[%clk 0:02:14]} 14. f4 {[%clk 0:02:32]}  Ra8 {[%clk 0:02:12]} 15. Qb6 {[%clk 0:02:31]}  Qc8 {[%clk 0:02:11]} 16. a3 {[%clk 0:02:13]}  dxe5 {[%clk 0:02:08]} 17. fxe5 {[%clk 0:02:06]}  Bxe5 {[%clk 0:02:04]} 18. Qc5 {[%clk 0:01:50]}  Qb8 {[%clk 0:02:02]} 19. Bd4 {[%clk 0:01:37]}  Bd6 {[%clk 0:01:52]} 20. Qb6 {[%clk 0:01:23]}  Qc8 {[%clk 0:01:48]} 21. Bd3 {[%clk 0:01:20]}  Rb8 {[%clk 0:01:39]} 22. Qa5 {[%clk 0:01:10]}  Qb7 {[%clk 0:01:38]} 23. Rhe1 {[%clk 0:01:04]}  Rfc8 {[%clk 0:01:32]} 24. Qg5 {[%clk 0:00:33]}  Qc7 {[%clk 0:01:13]} 25. g3 {[%clk 0:00:32]}  Bb3 {[%clk 0:01:01]} 26. Re2 {[%clk 0:00:24]}  Bc4 {[%clk 0:00:30]} 27. Bc3 {[%clk 0:00:18]}  Bxd3 {[%clk 0:00:21]} 28. Rxd3 {[%clk 0:00:18]}  Qc4 {[%clk 0:00:21]} 29. Qh6 {[%clk 0:00:16]}  f6 {[%clk 0:00:18]} 30. Qe3 {[%clk 0:00:16]}  Kf7 {[%clk 0:00:15]} 31. Rxd6 {[%clk 0:00:13]}  exd6 {[%clk 0:00:12]} 32. Qe7+ {[%clk 0:00:14]}  Kg8 {[%clk 0:00:13]} 33. Qxf6 {[%clk 0:00:12]}  Rb7 {[%clk 0:00:07]} 34. Qh8+ {[%clk 0:00:12]}  Kf7 {[%clk 0:00:08]} 35. Qg7# {[%clk 0:00:12]} 1-0


[Site "https://www.chess.com"]

[Event "Titled Tuesday Blitz April 4 Late 2023"]
[White "Li, Ruifeng"]
[Black "Dudzinski, Pawel"]
[WhiteFideId "2061074"]
[BlackFideId "1117890"]
[WhiteElo "2441"]
[BlackElo "2099"]
[Result "1-0"]
[Round "03"]
[TimeControl "180+2"]
[Date "2023.04.04"]
[WhiteClock "0:00:31"]
[BlackClock "0:00:06"]

1. b3 {[%clk 0:03:00]}  e5 {[%clk 0:02:56]} 2. Bb2 {[%clk 0:03:01]}  Nc6 {[%clk 0:02:56]} 3. e3 {[%clk 0:03:02]}  g6 {[%clk 0:02:54]} 4. Nf3 {[%clk 0:03:00]}  Bg7 {[%clk 0:02:53]} 5. d4 {[%clk 0:03:01]}  exd4 {[%clk 0:02:37]} 6. Nxd4 {[%clk 0:03:00]}  Nxd4 {[%clk 0:02:35]} 7. Bxd4 {[%clk 0:03:01]}  Bxd4 {[%clk 0:02:35]} 8. Qxd4 {[%clk 0:03:01]}  Qf6 {[%clk 0:02:34]} 9. Qxf6 {[%clk 0:02:58]}  Nxf6 {[%clk 0:02:35]} 10. c4 {[%clk 0:02:57]}  d5 {[%clk 0:02:28]} 11. Nc3 {[%clk 0:02:57]}  Be6 {[%clk 0:02:26]} 12. Nb5 {[%clk 0:02:42]}  Kd7 {[%clk 0:01:46]} 13. cxd5 {[%clk 0:02:41]}  Bxd5 {[%clk 0:01:46]} 14. O-O-O {[%clk 0:02:42]}  c6 {[%clk 0:01:46]} 15. Nc3 {[%clk 0:02:41]}  Kc7 {[%clk 0:01:41]} 16. Nxd5+ {[%clk 0:02:37]}  Nxd5 {[%clk 0:01:42]} 17. Bc4 {[%clk 0:02:37]}  Rad8 {[%clk 0:01:40]} 18. Bxd5 {[%clk 0:02:25]}  Rxd5 {[%clk 0:01:36]} 19. Rxd5 {[%clk 0:02:25]}  cxd5 {[%clk 0:01:37]} 20. Kd2 {[%clk 0:02:26]}  Kd7 {[%clk 0:01:25]} 21. Rc1 {[%clk 0:02:24]}  Rc8 {[%clk 0:01:22]} 22. Rxc8 {[%clk 0:02:23]}  Kxc8 {[%clk 0:01:22]} 23. Kd3 {[%clk 0:02:23]}  Kd7 {[%clk 0:01:23]} 24. Kd4 {[%clk 0:02:24]}  Kd6 {[%clk 0:01:24]} 25. h4 {[%clk 0:02:18]}  h5 {[%clk 0:01:18]} 26. f3 {[%clk 0:02:13]}  f5 {[%clk 0:01:02]} 27. a3 {[%clk 0:02:01]}  b6 {[%clk 0:00:28]} 28. b4 {[%clk 0:01:43]}  Ke6 {[%clk 0:00:26]} 29. a4 {[%clk 0:01:37]}  Kd6 {[%clk 0:00:26]} 30. a5 {[%clk 0:01:32]}  Ke6 {[%clk 0:00:17]} 31. axb6 {[%clk 0:00:36]}  axb6 {[%clk 0:00:17]} 32. e4 {[%clk 0:00:37]}  dxe4 {[%clk 0:00:17]} 33. fxe4 {[%clk 0:00:37]}  fxe4 {[%clk 0:00:17]} 34. Kxe4 {[%clk 0:00:38]}  Kd6 {[%clk 0:00:17]} 35. Kd4 {[%clk 0:00:31]}  Ke6 {[%clk 0:00:12]} 36. Kc4 {[%clk 0:00:29]}  Kd6 {[%clk 0:00:07]} 37. Kb5 {[%clk 0:00:30]}  Kc7 {[%clk 0:00:07]} 38. Ka6 {[%clk 0:00:30]}  Kc6 {[%clk 0:00:07]} 39. b5+ {[%clk 0:00:30]}  Kc5 {[%clk 0:00:06]} 40. g3 {[%clk 0:00:31]} 1-0


[Site "https://www.chess.com"]

[Event "Titled Tuesday Blitz April 4 Late 2023"]
[White "Prydun, Andriy"]
[Black "Kamsky, Gata"]
[WhiteFideId "14145898"]
[BlackFideId "2000024"]
[WhiteElo "2164"]
[BlackElo "2660"]
[Result "0-1"]
[Round "03"]
[TimeControl "180+2"]
[Date "2023.04.04"]
[WhiteClock "0:00:09"]
[BlackClock "0:00:18"]

1. d4 {[%clk 0:02:58]}  g6 {[%clk 0:02:59]} 2. e4 {[%clk 0:02:56]}  Bg7 {[%clk 0:02:59]} 3. Nc3 {[%clk 0:02:55]}  d6 {[%clk 0:02:59]} 4. Be3 {[%clk 0:02:56]}  a6 {[%clk 0:02:59]} 5. h4 {[%clk 0:02:56]}  h6 {[%clk 0:02:59]} 6. Nh3 {[%clk 0:02:56]}  b5 {[%clk 0:02:45]} 7. a3 {[%clk 0:02:56]}  e6 {[%clk 0:02:31]} 8. Nf4 {[%clk 0:02:55]}  Bb7 {[%clk 0:02:26]} 9. Be2 {[%clk 0:02:53]}  Nd7 {[%clk 0:02:24]} 10. Bf3 {[%clk 0:02:53]}  e5 {[%clk 0:02:20]} 11. Nfe2 {[%clk 0:02:52]}  h5 {[%clk 0:02:02]} 12. d5 {[%clk 0:02:47]}  Bh6 {[%clk 0:01:57]} 13. Qd2 {[%clk 0:02:39]}  Bxe3 {[%clk 0:01:48]} 14. fxe3 {[%clk 0:02:39]}  Nh6 {[%clk 0:01:40]} 15. Nd1 {[%clk 0:02:37]}  Nf6 {[%clk 0:01:39]} 16. Nf2 {[%clk 0:02:37]}  Qe7 {[%clk 0:01:37]} 17. a4 {[%clk 0:02:34]}  O-O {[%clk 0:01:34]} 18. Qb4 {[%clk 0:02:15]}  c6 {[%clk 0:01:23]} 19. dxc6 {[%clk 0:01:27]}  Bxc6 {[%clk 0:01:22]} 20. O-O-O {[%clk 0:01:25]}  Rfd8 {[%clk 0:01:20]} 21. a5 {[%clk 0:01:24]}  Rac8 {[%clk 0:01:15]} 22. Rd3 {[%clk 0:01:20]}  Bb7 {[%clk 0:01:08]} 23. Rhd1 {[%clk 0:01:16]}  Rc4 {[%clk 0:01:07]} 24. Qa3 {[%clk 0:01:12]}  Ra4 {[%clk 0:00:58]} 25. Qb3 {[%clk 0:00:58]}  Qc7 {[%clk 0:00:34]} 26. Kb1 {[%clk 0:00:56]}  Qxa5 {[%clk 0:00:33]} 27. c3 {[%clk 0:00:51]}  Ra1+ {[%clk 0:00:31]} 28. Kc2 {[%clk 0:00:51]}  Rxd1 {[%clk 0:00:32]} 29. Kxd1 {[%clk 0:00:51]}  Qb6 {[%clk 0:00:29]} 30. c4 {[%clk 0:00:34]}  b4 {[%clk 0:00:27]} 31. Nc3 {[%clk 0:00:34]}  a5 {[%clk 0:00:24]} 32. Na4 {[%clk 0:00:32]}  Qc7 {[%clk 0:00:23]} 33. Qc2 {[%clk 0:00:28]}  Nd7 {[%clk 0:00:20]} 34. Ke2 {[%clk 0:00:15]}  Bc6 {[%clk 0:00:20]} 35. Rd1 {[%clk 0:00:09]}  Bxa4 {[%clk 0:00:18]} 36. Qxa4 {[%clk 0:00:09]}  Nc5 {[%clk 0:00:19]} 37. Qb3 {[%clk 0:00:09]}  Nxb3 {[%clk 0:00:18]} 0-1


[Site "https://www.chess.com"]

[Event "Titled Tuesday Blitz April 4 Late 2023"]
[White "Gasparyan, David"]
[Black "Yeletsky, Ivan"]
[WhiteFideId "13311980"]
[BlackFideId "24180327"]
[WhiteElo "2471"]
[BlackElo "2422"]
[Result "0-1"]
[Round "03"]
[TimeControl "180+2"]
[Date "2023.04.04"]
[WhiteClock "0:00:02"]
[BlackClock "0:00:10"]

1. e4 {[%clk 0:03:00]}  d6 {[%clk 0:02:55]} 2. d4 {[%clk 0:03:00]}  Nf6 {[%clk 0:02:55]} 3. Nc3 {[%clk 0:03:01]}  g6 {[%clk 0:02:56]} 4. Nf3 {[%clk 0:02:59]}  Bg7 {[%clk 0:02:56]} 5. Bc4 {[%clk 0:02:59]}  Nxe4 {[%clk 0:02:55]} 6. Nxe4 {[%clk 0:02:56]}  d5 {[%clk 0:02:55]} 7. Bd3 {[%clk 0:02:57]}  dxe4 {[%clk 0:02:56]} 8. Bxe4 {[%clk 0:02:58]}  Nd7 {[%clk 0:02:56]} 9. Bf4 {[%clk 0:02:52]}  O-O {[%clk 0:02:42]} 10. O-O {[%clk 0:02:51]}  c5 {[%clk 0:02:42]} 11. Bg3 {[%clk 0:02:44]}  cxd4 {[%clk 0:02:41]} 12. b4 {[%clk 0:02:16]}  e5 {[%clk 0:02:33]} 13. Re1 {[%clk 0:02:10]}  Kh8 {[%clk 0:02:24]} 14. Bd3 {[%clk 0:02:04]}  Re8 {[%clk 0:02:21]} 15. Bc4 {[%clk 0:02:03]}  f6 {[%clk 0:01:53]} 16. Bh4 {[%clk 0:01:56]}  Qc7 {[%clk 0:01:44]} 17. Bb3 {[%clk 0:01:54]}  Rf8 {[%clk 0:01:43]} 18. Bg3 {[%clk 0:01:50]}  Qc3 {[%clk 0:01:40]} 19. Qd2 {[%clk 0:01:43]}  Qxd2 {[%clk 0:01:39]} 20. Nxd2 {[%clk 0:01:44]}  Nb6 {[%clk 0:01:33]} 21. Ne4 {[%clk 0:01:40]}  a5 {[%clk 0:01:31]} 22. a3 {[%clk 0:01:37]}  h6 {[%clk 0:01:24]} 23. Nd6 {[%clk 0:01:22]}  Kh7 {[%clk 0:01:20]} 24. f4 {[%clk 0:01:19]}  exf4 {[%clk 0:01:11]} 25. Bxf4 {[%clk 0:01:20]}  g5 {[%clk 0:01:12]} 26. Bg3 {[%clk 0:01:12]}  f5 {[%clk 0:01:09]} 27. Re7 {[%clk 0:01:10]}  axb4 {[%clk 0:01:07]} 28. Be5 {[%clk 0:01:05]}  Kg6 {[%clk 0:01:00]} 29. Rxg7+ {[%clk 0:01:04]}  Kh5 {[%clk 0:01:01]} 30. h3 {[%clk 0:00:53]}  bxa3 {[%clk 0:00:52]} 31. Bf7+ {[%clk 0:00:52]}  Rxf7 {[%clk 0:00:52]} 32. Nxf7 {[%clk 0:00:51]}  Nd5 {[%clk 0:00:33]} 33. Bxd4 {[%clk 0:00:38]}  Be6 {[%clk 0:00:17]} 34. Ne5 {[%clk 0:00:36]}  Nb4 {[%clk 0:00:16]} 35. Rc7 {[%clk 0:00:25]}  f4 {[%clk 0:00:12]} 36. Kf2 {[%clk 0:00:20]}  Ra4 {[%clk 0:00:09]} 37. Ke2 {[%clk 0:00:16]}  Nd5 {[%clk 0:00:08]} 38. Rc4 {[%clk 0:00:11]}  Nb4 {[%clk 0:00:06]} 39. c3 {[%clk 0:00:11]}  Bxc4+ {[%clk 0:00:06]} 40. Nxc4 {[%clk 0:00:11]}  Nc2 {[%clk 0:00:07]} 41. Ra2 {[%clk 0:00:04]}  Nxd4+ {[%clk 0:00:06]} 42. cxd4 {[%clk 0:00:04]}  Rxc4 {[%clk 0:00:07]} 43. Kd3 {[%clk 0:00:05]}  Ra4 {[%clk 0:00:06]} 44. d5 {[%clk 0:00:06]}  Kg6 {[%clk 0:00:07]} 45. d6 {[%clk 0:00:06]}  Kf6 {[%clk 0:00:07]} 46. Re2 {[%clk 0:00:06]}  a2 {[%clk 0:00:04]} 47. d7 {[%clk 0:00:06]}  Ra8 {[%clk 0:00:04]} 48. Rxa2 {[%clk 0:00:06]}  Rd8 {[%clk 0:00:04]} 49. Ke4 {[%clk 0:00:06]}  Rxd7 {[%clk 0:00:04]} 50. Ra5 {[%clk 0:00:07]}  Re7+ {[%clk 0:00:04]} 51. Kf3 {[%clk 0:00:08]}  Kg6 {[%clk 0:00:05]} 52. Rb5 {[%clk 0:00:07]}  Kh5 {[%clk 0:00:05]} 53. Kf2 {[%clk 0:00:07]}  Kh4 {[%clk 0:00:06]} 54. Rb3 {[%clk 0:00:06]}  h5 {[%clk 0:00:06]} 55. Rb4 {[%clk 0:00:06]}  Rc7 {[%clk 0:00:05]} 56. Kg1 {[%clk 0:00:06]}  g4 {[%clk 0:00:04]} 57. Rxf4 {[%clk 0:00:04]}  Kg3 {[%clk 0:00:04]} 58. Rf1 {[%clk 0:00:05]}  gxh3 {[%clk 0:00:04]} 59. Rf3+ {[%clk 0:00:05]}  Kg4 {[%clk 0:00:04]} 60. Rxh3 {[%clk 0:00:05]}  b5 {[%clk 0:00:04]} 61. Rb3 {[%clk 0:00:05]}  Rb7 {[%clk 0:00:05]} 62. Kf2 {[%clk 0:00:06]}  b4 {[%clk 0:00:04]} 63. Ke2 {[%clk 0:00:05]}  h4 {[%clk 0:00:04]} 64. Kf2 {[%clk 0:00:04]}  Kg5 {[%clk 0:00:04]} 65. Kf3 {[%clk 0:00:04]}  Rb8 {[%clk 0:00:04]} 66. Kf2 {[%clk 0:00:04]}  Kf4 {[%clk 0:00:05]} 67. Ke2 {[%clk 0:00:04]}  Ke4 {[%clk 0:00:06]} 68. Rh3 {[%clk 0:00:02]}  b3 {[%clk 0:00:06]} 69. Rxh4+ {[%clk 0:00:03]}  Kd5 {[%clk 0:00:06]} 70. Rh1 {[%clk 0:00:04]}  b2 {[%clk 0:00:03]} 71. Rb1 {[%clk 0:00:05]}  Kc4 {[%clk 0:00:04]} 72. Kd2 {[%clk 0:00:06]}  Kb3 {[%clk 0:00:04]} 73. g4 {[%clk 0:00:03]}  Rg8 {[%clk 0:00:04]} 74. Rg1 {[%clk 0:00:02]}  Rxg4 {[%clk 0:00:03]} 75. Rxg4 {[%clk 0:00:01]}  b1=Q {[%clk 0:00:04]} 76. Ke3 {[%clk 0:00:02]}  Qe1+ {[%clk 0:00:04]} 77. Kf4 {[%clk 0:00:03]}  Kc3 {[%clk 0:00:04]} 78. Kg5 {[%clk 0:00:04]}  Kd3 {[%clk 0:00:04]} 79. Rf4 {[%clk 0:00:04]}  Qg3+ {[%clk 0:00:04]} 80. Rg4 {[%clk 0:00:05]}  Qe5+ {[%clk 0:00:05]} 81. Kg6 {[%clk 0:00:05]}  Ke3 {[%clk 0:00:05]} 82. Rg5 {[%clk 0:00:05]}  Qe6+ {[%clk 0:00:06]} 83. Kg7 {[%clk 0:00:06]}  Kf4 {[%clk 0:00:06]} 84. Rg6 {[%clk 0:00:06]}  Qe7+ {[%clk 0:00:07]} 85. Kg8 {[%clk 0:00:05]}  Kf5 {[%clk 0:00:07]} 86. Rg7 {[%clk 0:00:05]}  Qe8+ {[%clk 0:00:08]} 87. Kh7 {[%clk 0:00:05]}  Kf6 {[%clk 0:00:09]} 88. Rg6+ {[%clk 0:00:01]}  Qxg6+ {[%clk 0:00:09]} 89. Kh8 {[%clk 0:00:02]}  Qg7# {[%clk 0:00:10]} 0-1


[Site "https://www.chess.com"]